[Event "HUN-ch U8-U18 2019"]
[Site "Balatonlelle"]
[Date "2019.06.22"]
[Round "2.12"]
[White "Blahota, Marcell"]
[Black "Fodor, Kornel"]
[Result "1/2-1/2"]
[ECO "A45"]
[WhiteElo "1793"]
[BlackElo "1926"]
[Annotator "NA"]
[PlyCount "59"]
[EventDate "2019.06.21"]
[EventType "swiss"]
[EventCountry "HUN"]
[SourceTitle "playchess.com"]
[Source "ChessBase"]
[SourceQuality "1"]
[TimeControl "40/5400+30:1800+30"]

1. d4 {[%emt 0:00:18]} Nf6 {[%emt 0:00:47]} 2. Bg5 {[%emt 0:00:50]} Ne4 {[%emt 0:12:19]} 3. Bf4 {[%emt 0:01:47]} d5 {[%emt 0:03:32]} 4. e3 {[%emt 0:01:57]} e6 {[%emt 0:12:57]} 5. Bd3 {[%emt 0:04:34]} Nf6 {[%emt 0:02:07]} 6. c3 {[%emt 0:01:45]} c5 {[%emt 0:02:06]} 7. Nf3 {[%emt 0:05:03]} Be7 {[%emt 0:11:47]} 8. O-O {[%emt 0:04:10]} Nh5 {[%emt 0:05:37]} 9. Bg3 {[%emt 0:06:30]} Nxg3 {[%emt 0:00:28]} 10. hxg3 {[%emt 0:00:18]} Nc6 {[%emt 0:05:42]} 11. Nbd2 {[%emt 0:01:32]} O-O {[%emt 0:01:39]} 12. Qe2 {[%emt 0:03:51]} g6 {[%emt 0:12:04]} 13. Rfe1 {[%emt 0:05:05]} Rb8 {[%emt 0:03:17]} 14. a4 {[%emt 0:07:25]} a6 {[%emt 0:02:23]} 15. Rac1 {[%emt 0:18:15]} c4 {[%emt 0:02:38]} 16. Bc2 {[%emt 0:02:09]} b5 {[%emt 0:00:11]} 17. b3 {[%emt 0:02:25]} cxb3 {[%emt 0:06:46]} 18. Bxb3 {[%emt 0:01:44]} Na5 {[%emt 0:00:33]} 19. Ne5 {[%emt 0:04:47]} f6 {[%emt 0:01:20]} 20. Nd3 {[%emt 0:00:48]} Nxb3 {[%emt 0:03:35]} 21. Nxb3 {[%emt 0:00:14]} bxa4 {[%emt 0:00:36]} 22. Nbc5 {[%emt 0:00:25]} Qa5 {[%emt 0:03:07]} 23. Nb4 {[%emt 0:01:31]} Qb5 {[%emt 0:01:29]} 24. Ncxa6 {[%emt 0:07:11]} Bxa6 {[%emt 0:00:32]} 25. Nxa6 {[%emt 0:00:13]} Qxe2 {[%emt 0:00:34]} 26. Rxe2 {[%emt 0:00:09]} Rb6 {[%emt 0:00:29]} 27. Nc5 {[%emt 0:01:32]} Bxc5 {[%emt 0:00:16]} 28. dxc5 {[%emt 0:00:28]} Rc6 {[%emt 0:00:25]} 29. Ra2 {[%emt 0:05:36]} Ra8 {[%emt 0:00:53]} 30. Rca1 {[%emt 0:00:51]} 1/2-1/2

[Event "HUN-ch U8-U18 2019"]
[Site "Balatonlelle"]
[Date "2019.06.21"]
[Round "2.12"]
[White "Csidey, Csongor"]
[Black "Kozsik, Bende Barnabas"]
[Result "0-1"]
[ECO "B20"]
[WhiteElo "1708"]
[BlackElo "2089"]
[Annotator "NA"]
[PlyCount "88"]
[EventDate "2019.06.21"]
[EventType "swiss"]
[EventCountry "HUN"]
[SourceTitle "playchess.com"]
[Source "ChessBase"]
[SourceQuality "1"]
[TimeControl "40/5400+30:1800+30"]

1. e4 {[%emt 0:00:04]} c5 {[%emt 0:00:24]} 2. c4 {[%emt 0:00:09]} Nc6 {[%emt 0:00:40]} 3. Nc3 {[%emt 0:00:39]} g6 {[%emt 0:00:26]} 4. g3 {[%emt 0:00:22]} Bg7 {[%emt 0:00:16]} 5. Bg2 {[%emt 0:00:05]} d6 {[%emt 0:00:45]} 6. Nge2 {[%emt 0:00:23]} h5 {[%emt 0:01:14]} 7. h4 {[%emt 0:04:24]} Nh6 {[%emt 0:09:15]} 8. O-O {[%emt 0:16:58]} O-O {[%emt 0:01:54]} 9. Nf4 {[%emt 0:05:23]} Nd4 {[%emt 0:05:26]} 10. d3 {[%emt 0:12:07]} Kh7 {[%emt 0:04:27]} 11. Nce2 {[%emt 0:13:14]} Bg4 {[%emt 0:06:21]} 12. f3 {[%emt 0:01:13]} Bd7 {[%emt 0:00:08]} 13. Be3 {[%emt 0:03:49]} Rb8 {[%emt 0:10:23]} 14. Nxd4 {[%emt 0:09:13]} cxd4 {[%emt 0:00:47]} 15. Bf2 {[%emt 0:00:21]} b5 {[%emt 0:02:38]} 16. b3 {[%emt 0:01:52]} e5 {[%emt 0:02:39]} 17. Nd5 {[%emt 0:07:18]} f5 {[%emt 0:03:28]} 18. Rc1 {[%emt 0:01:44]} Be6 {[%emt 0:07:07]} 19. Bh3 {[%emt 0:02:07]} bxc4 {[%emt 0:02:48]} 20. bxc4 {[%emt 0:00:55]} Bxd5 {[%emt 0:07:18]} 21. cxd5 {[%emt 0:01:44]} Bf6 {[%emt 0:01:29]} 22. Qa4 {[%emt 0:01:04]} Rb7 {[%emt 0:01:04]} 23. Rc6 {[%emt 0:00:58]} f4 {[%emt 0:03:04]} 24. Rfc1 {[%emt 0:02:04]} fxg3 {[%emt 0:02:37]} 25. Bxg3 {[%emt 0:00:22]} Bxh4 {[%emt 0:02:20]} 26. Bxh4 {[%emt 0:04:57]} Qxh4 {[%emt 0:00:16]} 27. Bg2 {[%emt 0:00:52]} Rbf7 {[%emt 0:03:34]} 28. Qa3 {[%emt 0:01:53]} Rxf3 {[%emt 0:03:20]} 29. Bxf3 {[%emt 0:00:16]} Rxf3 {[%emt 0:00:15]} 30. Rc7+ {[%emt 0:00:52]} Nf7 {[%emt 0:00:17]} 31. Qb2 {[%emt 0:01:50]} Rg3+ {[%emt 0:00:44]} 32. Qg2 {[%emt 0:01:55]} Rxg2+ {[%emt 0:00:06]} 33. Kxg2 {[%emt 0:00:02]} Qg4+ {[%emt 0:00:13]} 34. Kf2 {[%emt 0:00:09]} Qf4+ {[%emt 0:00:05]} 35. Ke2 {[%emt 0:00:11]} Kh6 {[%emt 0:00:21]} 36. Rf1 {[%emt 0:00:12]} Qg4+ {[%emt 0:00:13]} 37. Ke1 {[%emt 0:00:40]} Qg3+ {[%emt 0:00:41]} 38. Kd2 {[%emt 0:00:47]} Qe3+ {[%emt 0:00:09]} 39. Kd1 {[%emt 0:00:28]} Qxd3+ {[%emt 0:00:10]} 40. Ke1 {[%emt 0:00:00]} Qxe4+ {[%emt 0:00:00]} 41. Kd2 {[%emt 0:00:34]} Qe3+ {[%emt 0:00:24]} 42. Kd1 {[%emt 0:00:09]} Ng5 {[%emt 0:00:20]} 43. a4 {[%emt 0:00:46]} Ne4 {[%emt 0:00:22]} 44. Rc2 {[%emt 0:00:19]} d3 {[%emt 0:00:06]} 0-1

[Event "HUN-ch U8-U18 2019"]
[Site "Balatonlelle"]
[Date "2019.06.22"]
[Round "2.13"]
[White "Papp, Levente"]
[Black "Acs, Marton"]
[Result "1-0"]
[ECO "A13"]
[WhiteElo "2350"]
[BlackElo "2138"]
[Annotator "NA"]
[PlyCount "49"]
[EventDate "2019.06.21"]
[EventType "swiss"]
[EventCountry "HUN"]
[SourceTitle "playchess.com"]
[Source "ChessBase"]
[SourceQuality "1"]
[TimeControl "40/5400+30:1800+30"]

1. c4 {[%emt 0:00:02]} e6 {[%emt 0:00:11]} 2. Nc3 {[%emt 0:00:13]} Bb4 {[%emt 0:00:14]} 3. e4 {[%emt 0:01:49]} c5 {[%emt 0:07:18]} 4. Qg4 {[%emt 0:01:46]} Nf6 {[%emt 0:29:05]} 5. Qxg7 {[%emt 0:00:19]} Rg8 {[%emt 0:00:06]} 6. Qh6 {[%emt 0:00:05]} Nc6 {[%emt 0:01:16]} 7. Nf3 {[%emt 0:16:38]} Nd4 {[%emt 0:07:27]} 8. e5 {[%emt 0:10:45]} Rg6 {[%emt 0:05:51]} 9. Qh3 {[%emt 0:00:16]} Bxc3 {[%emt 0:05:06]} 10. dxc3 {[%emt 0:01:42]} Nc2+ {[%emt 0:00:27]} 11. Kd1 {[%emt 0:00:05]} Nxa1 {[%emt 0:00:09]} 12. exf6 {[%emt 0:00:09]} d5 {[%emt 0:06:54]} 13. Bd2 {[%emt 0:31:27]} Qxf6 {[%emt 0:08:21]} 14. Qh5 {[%emt 0:10:13]} Bd7 {[%emt 0:13:50]} 15. Kc1 {[%emt 0:09:28]} dxc4 {[%emt 0:05:03]} 16. Qxc5 {[%emt 0:05:51]} Bc6 {[%emt 0:01:37]} 17. Bg5 {[%emt 0:00:08]} Rxg5 {[%emt 0:01:49]} 18. Qxg5 {[%emt 0:00:04]} Qxg5+ {[%emt 0:00:42]} 19. Nxg5 {[%emt 0:00:01]} h6 {[%emt 0:01:59]} 20. Nf3 {[%emt 0:00:33]} Be4 {[%emt 0:01:21]} 21. Bxc4 {[%emt 0:01:10]} Rd8 {[%emt 0:00:48]} 22. Re1 {[%emt 0:04:50]} Bh7 {[%emt 0:00:24]} 23. Bb5+ {[%emt 0:01:16]} Ke7 {[%emt 0:00:06]} 24. Ba4 {[%emt 0:00:05]} a6 {[%emt 0:00:31]} 25. b4 {[%emt 0:00:26]} 1-0

[Event "HUN-ch U8-U18 2019"]
[Site "Balatonlelle"]
[Date "2019.06.21"]
[Round "2.13"]
[White "Daroczi, Donat"]
[Black "Csiki, Laszlo Levente"]
[Result "1-0"]
[ECO "C45"]
[WhiteElo "2050"]
[BlackElo "1222"]
[Annotator "NA"]
[PlyCount "49"]
[EventDate "2019.06.21"]
[EventType "swiss"]
[EventCountry "HUN"]
[SourceTitle "playchess.com"]
[Source "ChessBase"]
[SourceQuality "1"]
[TimeControl "40/5400+30:1800+30"]

1. e4 {[%emt 0:00:05]} e5 {[%emt 0:00:04]} 2. Nf3 {[%emt 0:00:04]} Nc6 {[%emt 0:00:03]} 3. d4 {[%emt 0:00:47]} exd4 {[%emt 0:00:10]} 4. Nxd4 {[%emt 0:00:06]} Nf6 {[%emt 0:00:06]} 5. Nxc6 {[%emt 0:00:17]} bxc6 {[%emt 0:00:11]} 6. e5 {[%emt 0:00:06]} Qe7 {[%emt 0:00:04]} 7. Qe2 {[%emt 0:00:04]} Nd5 {[%emt 0:00:05]} 8. c4 {[%emt 0:00:05]} Ba6 {[%emt 0:00:02]} 9. b3 {[%emt 0:02:13]} g6 {[%emt 0:00:22]} 10. Ba3 {[%emt 0:04:13]} Nb4 {[%emt 0:01:09]} 11. f4 {[%emt 0:08:31]} f6 {[%emt 0:00:23]} 12. Bb2 {[%emt 0:15:11]} Bh6 {[%emt 0:03:07]} 13. a3 {[%emt 0:03:47]} Nd5 {[%emt 0:00:14]} 14. exf6 {[%emt 0:01:26]} Qxe2+ {[%emt 0:00:10]} 15. Bxe2 {[%emt 0:00:01]} Nxf4 {[%emt 0:00:16]} 16. f7+ {[%emt 0:00:28]} Kxf7 {[%emt 0:00:04]} 17. Bxh8 {[%emt 0:00:07]} Rxh8 {[%emt 0:00:00]} 18. O-O {[%emt 0:00:32]} Kg7 {[%emt 0:00:09]} 19. Nc3 {[%emt 0:00:29]} Nxe2+ {[%emt 0:03:19]} 20. Nxe2 {[%emt 0:00:20]} d5 {[%emt 0:00:42]} 21. Rae1 {[%emt 0:07:52]} dxc4 {[%emt 0:00:41]} 22. Nd4 {[%emt 0:01:14]} cxb3 {[%emt 0:01:55]} 23. Re7+ {[%emt 0:00:06]} Kg8 {[%emt 0:00:33]} 24. Re8+ {[%emt 0:00:06]} Kg7 {[%emt 0:02:45]} 25. Ne6# {[%emt 0:00:06]} 1-0

[Event "HUN-ch U8-U18 2019"]
[Site "Balatonlelle"]
[Date "2019.06.22"]
[Round "2.14"]
[White "Horvath, Balazs"]
[Black "Vanczak, Tamas"]
[Result "1/2-1/2"]
[ECO "A05"]
[WhiteElo "2139"]
[BlackElo "2311"]
[Annotator "NA"]
[PlyCount "88"]
[EventDate "2019.06.21"]
[EventType "swiss"]
[EventCountry "HUN"]
[SourceTitle "playchess.com"]
[Source "ChessBase"]
[SourceQuality "1"]
[TimeControl "40/5400+30:1800+30"]

1. Nf3 {[%emt 0:00:10]} Nf6 {[%emt 0:03:26]} 2. d4 {[%emt 0:01:51]} d6 {[%emt 0:01:48]} 3. g3 {[%emt 0:01:22]} Nbd7 {[%emt 0:00:53]} 4. Bg2 {[%emt 0:00:50]} e5 {[%emt 0:00:43]} 5. dxe5 {[%emt 0:01:04]} dxe5 {[%emt 0:00:34]} 6. O-O {[%emt 0:01:40]} Bc5 {[%emt 0:01:31]} 7. Nc3 {[%emt 0:05:34]} O-O {[%emt 0:05:14]} 8. Bg5 {[%emt 0:05:30]} h6 {[%emt 0:02:18]} 9. Bxf6 {[%emt 0:03:04]} Qxf6 {[%emt 0:00:28]} 10. Nd5 {[%emt 0:01:27]} Qd8 {[%emt 0:02:48]} 11. b4 {[%emt 0:08:23]} Bd6 {[%emt 0:01:32]} 12. Rb1 {[%emt 0:02:23]} Nb6 {[%emt 0:03:26]} 13. e4 {[%emt 0:07:56]} c6 {[%emt 0:02:17]} 14. Ne3 {[%emt 0:00:14]} Be6 {[%emt 0:01:17]} 15. a3 {[%emt 0:00:55]} Na4 {[%emt 0:04:38]} 16. Qd3 {[%emt 0:04:26]} Bc7 {[%emt 0:02:01]} 17. Rfd1 {[%emt 0:02:12]} Qf6 {[%emt 0:01:53]} 18. c4 {[%emt 0:02:21]} a5 {[%emt 0:08:09]} 19. c5 {[%emt 0:03:24]} axb4 {[%emt 0:03:14]} 20. axb4 {[%emt 0:00:26]} Ba2 {[%emt 0:00:27]} 21. Qc2 {[%emt 0:05:34]} Bxb1 {[%emt 0:01:02]} 22. Rxb1 {[%emt 0:00:07]} b5 {[%emt 0:01:29]} 23. cxb6 {[%emt 0:00:59]} Nxb6 {[%emt 0:01:36]} 24. b5 {[%emt 0:00:47]} c5 {[%emt 0:10:22]} 25. Qxc5 {[%emt 0:01:28]} Qd6 {[%emt 0:01:12]} 26. Qc2 {[%emt 0:02:25]} Bb8 {[%emt 0:03:14]} 27. Nf5 {[%emt 0:03:32]} Qf6 {[%emt 0:09:45]} 28. Qc6 {[%emt 0:09:32]} Qxc6 {[%emt 0:01:51]} 29. Ne7+ {[%emt 0:02:10]} Kh8 {[%emt 0:00:38]} 30. bxc6 {[%emt 0:00:19]} Bc7 {[%emt 0:10:37]} 31. Nd5 {[%emt 0:01:41]} Nxd5 {[%emt 0:01:26]} 32. exd5 {[%emt 0:00:08]} Rab8 {[%emt 0:01:11]} 33. Rd1 {[%emt 0:00:20]} Rfd8 {[%emt 0:00:41]} 34. Bh3 {[%emt 0:01:00]} e4 {[%emt 0:04:59]} 35. Nh4 {[%emt 0:02:18]} g6 {[%emt 0:00:54]} 36. Bd7 {[%emt 0:00:45]} Rxd7 {[%emt 0:02:00]} 37. cxd7 {[%emt 0:00:15]} Rd8 {[%emt 0:00:16]} 38. Re1 {[%emt 0:01:02]} Rxd7 {[%emt 0:00:10]} 39. Rxe4 {[%emt 0:00:10]} Rxd5 {[%emt 0:01:48]} 40. Nxg6+ {[%emt 0:00:00]} fxg6 {[%emt 0:00:00]} 41. Re8+ {[%emt 0:00:21]} Kg7 {[%emt 0:01:29]} 42. Re7+ {[%emt 0:00:05]} Kf6 {[%emt 0:00:18]} 43. Rxc7 {[%emt 0:00:05]} Rd6 {[%emt 0:00:59]} 44. Kg2 {[%emt 0:00:29]} g5 {[%emt 0:02:29]} 1/2-1/2

[Event "HUN-ch U8-U18 2019"]
[Site "Balatonlelle"]
[Date "2019.06.21"]
[Round "2.14"]
[White "Petroczy, Zoltan"]
[Black "Pervai, Laszlo"]
[Result "0-1"]
[ECO "B34"]
[WhiteElo "1517"]
[BlackElo "2033"]
[Annotator "NA"]
[PlyCount "70"]
[EventDate "2019.06.21"]
[EventType "swiss"]
[EventCountry "HUN"]
[SourceTitle "playchess.com"]
[Source "ChessBase"]
[SourceQuality "1"]
[TimeControl "40/5400+30:1800+30"]

1. e4 {[%emt 0:00:02]} c5 {[%emt 0:00:14]} 2. Nf3 {[%emt 0:00:08]} Nc6 {[%emt 0:00:05]} 3. d4 {[%emt 0:00:09]} cxd4 {[%emt 0:00:14]} 4. Nxd4 {[%emt 0:00:09]} g6 {[%emt 0:00:05]} 5. Nc3 {[%emt 0:00:29]} Bg7 {[%emt 0:00:20]} 6. Be3 {[%emt 0:00:12]} Nf6 {[%emt 0:00:21]} 7. Nxc6 {[%emt 0:00:23]} bxc6 {[%emt 0:02:28]} 8. e5 {[%emt 0:03:04]} Ng8 {[%emt 0:02:01]} 9. f4 {[%emt 0:02:06]} f6 {[%emt 0:05:33]} 10. exf6 {[%emt 0:03:37]} Nxf6 {[%emt 0:00:14]} 11. Be2 {[%emt 0:01:33]} d5 {[%emt 0:06:23]} 12. O-O {[%emt 0:00:51]} O-O {[%emt 0:02:36]} 13. Bf3 {[%emt 0:01:53]} Qa5 {[%emt 0:13:07]} 14. Kh1 {[%emt 0:11:27]} Ba6 {[%emt 0:04:51]} 15. Rf2 {[%emt 0:04:16]} Rfd8 {[%emt 0:07:20]} 16. Rd2 {[%emt 0:04:44]} Rab8 {[%emt 0:01:48]} 17. Rb1 {[%emt 0:02:16]} Bc4 {[%emt 0:03:21]} 18. Bd4 {[%emt 0:08:26]} Ne8 {[%emt 0:03:36]} 19. Bxg7 {[%emt 0:04:59]} Nxg7 {[%emt 0:00:13]} 20. Qc1 {[%emt 0:00:20]} Nf5 {[%emt 0:04:26]} 21. Nd1 {[%emt 0:03:26]} Nd4 {[%emt 0:05:22]} 22. b3 {[%emt 0:03:31]} Nxf3 {[%emt 0:01:28]} 23. gxf3 {[%emt 0:00:14]} d4 {[%emt 0:00:21]} 24. c3 {[%emt 0:00:26]} Bd5 {[%emt 0:04:01]} 25. Rf2 {[%emt 0:00:15]} c5 {[%emt 0:02:41]} 26. Qc2 {[%emt 0:04:14]} Qc7 {[%emt 0:03:17]} 27. cxd4 {[%emt 0:04:24]} Qxf4 {[%emt 0:00:17]} 28. Qe2 {[%emt 0:00:28]} cxd4 {[%emt 0:01:03]} 29. Nb2 {[%emt 0:00:36]} Rf8 {[%emt 0:01:05]} 30. Rbf1 {[%emt 0:00:25]} Qe3 {[%emt 0:01:23]} 31. Qd3 {[%emt 0:01:08]} Rbc8 {[%emt 0:02:00]} 32. Qd1 {[%emt 0:01:16]} Rc3 {[%emt 0:01:05]} 33. Kg2 {[%emt 0:00:13]} Rf5 {[%emt 0:05:25]} 34. h3 {[%emt 0:01:13]} Rg5+ {[%emt 0:01:05]} 35. Kh1 {[%emt 0:00:10]} Rh5 {[%emt 0:00:27]} 0-1

[Event "HUN-ch U8-U18 2019"]
[Site "Balatonlelle"]
[Date "2019.06.22"]
[Round "2.15"]
[White "Pogany, Zsombor"]
[Black "Bohus, Adam"]
[Result "1/2-1/2"]
[ECO "A01"]
[WhiteElo "2121"]
[BlackElo "2196"]
[Annotator "NA"]
[PlyCount "92"]
[EventDate "2019.06.21"]
[EventType "swiss"]
[EventCountry "HUN"]
[SourceTitle "playchess.com"]
[Source "ChessBase"]
[SourceQuality "1"]
[TimeControl "40/5400+30:1800+30"]

1. b3 {[%emt 0:00:06]} d5 {[%emt 0:00:50]} 2. Bb2 {[%emt 0:00:07]} Nc6 {[%emt 0:00:37]} 3. e3 {[%emt 0:00:10]} Nf6 {[%emt 0:04:58]} 4. Nf3 {[%emt 0:02:41]} Bg4 {[%emt 0:03:40]} 5. h3 {[%emt 0:01:57]} Bh5 {[%emt 0:01:52]} 6. Bb5 {[%emt 0:02:30]} e6 {[%emt 0:13:44]} 7. d3 {[%emt 0:14:36]} Bd6 {[%emt 0:06:03]} 8. g4 {[%emt 0:03:53]} Bg6 {[%emt 0:01:03]} 9. Ne5 {[%emt 0:00:38]} Bxe5 {[%emt 0:08:55]} 10. Bxc6+ {[%emt 0:01:49]} bxc6 {[%emt 0:00:01]} 11. Bxe5 {[%emt 0:00:10]} O-O {[%emt 0:05:42]} 12. Nd2 {[%emt 0:03:50]} Nd7 {[%emt 0:02:05]} 13. Bb2 {[%emt 0:04:40]} a5 {[%emt 0:15:52]} 14. a4 {[%emt 0:05:02]} e5 {[%emt 0:09:19]} 15. h4 {[%emt 0:05:09]} f6 {[%emt 0:05:58]} 16. Qe2 {[%emt 0:05:10]} Rb8 {[%emt 0:04:21]} 17. Bc3 {[%emt 0:07:50]} Qe7 {[%emt 0:04:03]} 18. Nf1 {[%emt 0:03:46]} Nc5 {[%emt 0:03:47]} 19. Ng3 {[%emt 0:08:59]} Qd7 {[%emt 0:06:03]} 20. e4 {[%emt 0:06:03]} Ne6 {[%emt 0:00:06]} 21. Bxa5 {[%emt 0:02:37]} Nf4 {[%emt 0:00:53]} 22. Qf3 {[%emt 0:01:55]} Bf7 {[%emt 0:00:31]} 23. Bd2 {[%emt 0:01:21]} Be6 {[%emt 0:00:01]} 24. Nf5 {[%emt 0:01:18]} g6 {[%emt 0:00:25]} 25. Bxf4 {[%emt 0:04:47]} exf4 {[%emt 0:00:01]} 26. Nh6+ {[%emt 0:03:21]} Kg7 {[%emt 0:00:01]} 27. Qxf4 {[%emt 0:00:10]} dxe4 {[%emt 0:01:43]} 28. Rd1 {[%emt 0:03:01]} Qd6 {[%emt 0:00:53]} 29. Qe3 {[%emt 0:02:52]} Qb4+ {[%emt 0:00:23]} 30. Kf1 {[%emt 0:00:27]} Bd5 {[%emt 0:00:37]} 31. d4 {[%emt 0:02:27]} Rbe8 {[%emt 0:00:31]} 32. h5 {[%emt 0:00:24]} f5 {[%emt 0:00:26]} 33. gxf5 {[%emt 0:00:20]} gxf5 {[%emt 0:00:06]} 34. Rg1+ {[%emt 0:00:16]} Kh8 {[%emt 0:00:01]} 35. Qg5 {[%emt 0:00:29]} Qe7 {[%emt 0:00:36]} 36. Nxf5 {[%emt 0:00:39]} Qxg5 {[%emt 0:00:56]} 37. Rxg5 {[%emt 0:00:07]} e3 {[%emt 0:00:01]} 38. Re1 {[%emt 0:00:56]} h6 {[%emt 0:00:59]} 39. Nxh6 {[%emt 0:00:32]} Rxf2+ {[%emt 0:00:53]} 40. Kg1 {[%emt 0:00:00]} Rxc2 {[%emt 0:00:00]} 41. Nf5 {[%emt 0:08:03]} e2 {[%emt 0:11:03]} 42. Rg3 {[%emt 0:04:01]} Rb2 {[%emt 0:09:49]} 43. Re3 {[%emt 0:02:59]} Rxe3 {[%emt 0:07:54]} 44. Nxe3 {[%emt 0:00:15]} Bxb3 {[%emt 0:00:33]} 45. Kf2 {[%emt 0:01:26]} Bxa4 {[%emt 0:02:45]} 46. Rxe2 {[%emt 0:00:20]} Rb5 {[%emt 0:00:58]} 1/2-1/2

[Event "HUN-ch U8-U18 2019"]
[Site "Balatonlelle"]
[Date "2019.06.21"]
[Round "2.15"]
[White "Bilku, Andras"]
[Black "Broderick, Tamas"]
[Result "1-0"]
[ECO "D70"]
[WhiteElo "1907"]
[BlackElo "1511"]
[Annotator "NA"]
[PlyCount "87"]
[EventDate "2019.06.21"]
[EventType "swiss"]
[EventCountry "HUN"]
[SourceTitle "playchess.com"]
[Source "ChessBase"]
[SourceQuality "1"]
[TimeControl "40/5400+30:1800+30"]

1. d4 {[%emt 0:00:01]} d5 {[%emt 0:00:05]} 2. c4 {[%emt 0:00:05]} c6 {[%emt 0:00:19]} 3. Nf3 {[%emt 0:00:04]} Nf6 {[%emt 0:00:03]} 4. Nbd2 {[%emt 0:00:04]} Bf5 {[%emt 0:00:52]} 5. Nh4 {[%emt 0:00:06]} Be6 {[%emt 0:00:13]} 6. e3 {[%emt 0:00:11]} g6 {[%emt 0:00:33]} 7. Nhf3 {[%emt 0:01:42]} Bg7 {[%emt 0:01:43]} 8. Bd3 {[%emt 0:02:37]} O-O {[%emt 0:10:28]} 9. O-O {[%emt 0:00:08]} dxc4 {[%emt 0:03:17]} 10. Nxc4 {[%emt 0:00:11]} c5 {[%emt 0:03:51]} 11. Qb3 {[%emt 0:15:21]} Bxc4 {[%emt 0:04:33]} 12. Bxc4 {[%emt 0:10:07]} Qb6 {[%emt 0:08:20]} 13. Bd2 {[%emt 0:12:08]} e6 {[%emt 0:22:09]} 14. Bc3 {[%emt 0:01:26]} Qxb3 {[%emt 0:08:18]} 15. Bxb3 {[%emt 0:00:06]} cxd4 {[%emt 0:05:25]} 16. Nxd4 {[%emt 0:00:37]} Nbd7 {[%emt 0:01:02]} 17. Rfd1 {[%emt 0:00:54]} Nb6 {[%emt 0:00:32]} 18. Nb5 {[%emt 0:02:19]} Ne4 {[%emt 0:16:07]} 19. Bxg7 {[%emt 0:01:10]} Kxg7 {[%emt 0:00:03]} 20. Rac1 {[%emt 0:00:25]} Rfd8 {[%emt 0:08:09]} 21. Nd4 {[%emt 0:04:34]} Kg8 {[%emt 0:01:17]} 22. f3 {[%emt 0:08:01]} Nf6 {[%emt 0:00:18]} 23. Kf2 {[%emt 0:00:49]} Rd7 {[%emt 0:02:32]} 24. Ke2 {[%emt 0:01:45]} Rad8 {[%emt 0:00:07]} 25. Nb5 {[%emt 0:01:33]} Rxd1 {[%emt 0:01:12]} 26. Rxd1 {[%emt 0:00:07]} Rxd1 {[%emt 0:00:03]} 27. Kxd1 {[%emt 0:00:14]} Nbd5 {[%emt 0:00:09]} 28. Ke2 {[%emt 0:00:12]} a6 {[%emt 0:00:07]} 29. Nd6 {[%emt 0:00:27]} b5 {[%emt 0:00:19]} 30. g4 {[%emt 0:00:52]} Nb4 {[%emt 0:00:59]} 31. a3 {[%emt 0:00:32]} Nc6 {[%emt 0:00:08]} 32. g5 {[%emt 0:00:44]} Nd7 {[%emt 0:00:14]} 33. Ne4 {[%emt 0:00:49]} Na5 {[%emt 0:00:52]} 34. Ba2 {[%emt 0:00:40]} Nb7 {[%emt 0:00:14]} 35. f4 {[%emt 0:01:40]} Kf8 {[%emt 0:00:05]} 36. b4 {[%emt 0:00:16]} Ke7 {[%emt 0:00:16]} 37. Kd3 {[%emt 0:00:07]} e5 {[%emt 0:01:09]} 38. Bd5 {[%emt 0:00:45]} Nd8 {[%emt 0:00:33]} 39. Nc5 {[%emt 0:01:42]} Kd6 {[%emt 0:01:59]} 40. Nxd7 {[%emt 0:00:00]} Kxd5 {[%emt 0:00:00]} 41. Nxe5 {[%emt 0:01:35]} Ke6 {[%emt 0:01:54]} 42. Ng4 {[%emt 0:01:14]} Nb7 {[%emt 0:02:12]} 43. e4 {[%emt 0:01:45]} Nd6 {[%emt 0:00:47]} 44. Ne3 1-0

[Event "HUN-ch U8-U18 2019"]
[Site "Balatonlelle"]
[Date "2019.06.22"]
[Round "2.16"]
[White "Kokeny, Norbert Adrian"]
[Black "Varga, Marcell"]
[Result "1-0"]
[ECO "A05"]
[WhiteElo "2268"]
[BlackElo "2106"]
[Annotator "NA"]
[PlyCount "85"]
[EventDate "2019.06.21"]
[EventType "swiss"]
[EventCountry "HUN"]
[SourceTitle "playchess.com"]
[Source "ChessBase"]
[SourceQuality "1"]
[TimeControl "40/5400+30:1800+30"]

1. Nf3 {[%emt 0:00:15]} Nf6 {[%emt 0:00:41]} 2. g3 {[%emt 0:02:51]} c5 {[%emt 0:01:28]} 3. Bg2 {[%emt 0:00:15]} Nc6 {[%emt 0:02:03]} 4. c4 {[%emt 0:02:37]} d6 {[%emt 0:01:35]} 5. Nc3 {[%emt 0:00:42]} g6 {[%emt 0:00:40]} 6. O-O {[%emt 0:00:04]} Bg7 {[%emt 0:00:16]} 7. a3 {[%emt 0:00:26]} O-O {[%emt 0:01:43]} 8. Rb1 {[%emt 0:00:00]} Rb8 {[%emt 0:12:35]} 9. b4 {[%emt 0:02:22]} b6 {[%emt 0:00:36]} 10. d3 {[%emt 0:02:22]} Qd7 {[%emt 0:02:01]} 11. Bd2 {[%emt 0:04:34]} Bb7 {[%emt 0:07:22]} 12. Ne1 {[%emt 0:08:46]} Nd4 {[%emt 0:05:04]} 13. e4 {[%emt 0:00:15]} e6 {[%emt 0:01:39]} 14. f4 {[%emt 0:01:05]} Ne8 {[%emt 0:02:42]} 15. Nc2 {[%emt 0:04:03]} f5 {[%emt 0:03:51]} 16. Ne3 {[%emt 0:00:05]} Nf6 {[%emt 0:03:08]} 17. b5 {[%emt 0:17:49]} Rbd8 {[%emt 0:08:56]} 18. a4 {[%emt 0:01:47]} Qc8 {[%emt 0:05:00]} 19. a5 {[%emt 0:03:36]} bxa5 {[%emt 0:01:00]} 20. exf5 {[%emt 0:03:00]} Bxg2 {[%emt 0:01:25]} 21. Nxg2 {[%emt 0:00:56]} gxf5 {[%emt 0:02:00]} 22. Ne2 {[%emt 0:01:17]} Ng4 {[%emt 0:06:08]} 23. h3 {[%emt 0:00:48]} Nxe2+ {[%emt 0:01:41]} 24. Qxe2 {[%emt 0:00:05]} Bd4+ {[%emt 0:00:08]} 25. Kh1 {[%emt 0:00:03]} Nf6 {[%emt 0:00:07]} 26. Bxa5 {[%emt 0:01:53]} Rde8 {[%emt 0:00:10]} 27. Bd2 {[%emt 0:00:48]} Qb7 {[%emt 0:03:24]} 28. Be3 {[%emt 0:07:02]} Bxe3 {[%emt 0:02:05]} 29. Qxe3 {[%emt 0:00:05]} Kh8 {[%emt 0:00:41]} 30. Qf3 {[%emt 0:05:06]} Qf7 {[%emt 0:04:46]} 31. Ra1 {[%emt 0:03:48]} Rg8 {[%emt 0:03:11]} 32. Ne3 {[%emt 0:03:58]} Qh5 {[%emt 0:02:36]} 33. Kh2 {[%emt 0:06:25]} Re7 {[%emt 0:06:15]} 34. Qxh5 {[%emt 0:03:03]} Nxh5 {[%emt 0:00:02]} 35. g4 {[%emt 0:00:06]} fxg4 {[%emt 0:01:14]} 36. hxg4 {[%emt 0:00:04]} Nf6 {[%emt 0:00:19]} 37. Kh3 {[%emt 0:00:14]} Reg7 {[%emt 0:02:31]} 38. g5 {[%emt 0:01:24]} Ne8 {[%emt 0:01:30]} 39. Ng4 {[%emt 0:00:06]} Rf8 {[%emt 0:01:11]} 40. Nh6 {[%emt 0:00:00]} e5 {[%emt 0:00:00]} 41. fxe5 {[%emt 0:03:19]} Rxf1 {[%emt 0:05:18]} 42. Rxf1 {[%emt 0:00:03]} Re7 {[%emt 0:01:02]} 43. Rf8+ {[%emt 0:00:05]} 1-0